[Event "Lliga Catalana 2024"]
[Site "Catalonia"]
[Date "2024.02.03"]
[Round "3.7"]
[White "Lacasa Diaz, Josep Anton"]
[Black "Bernado Lopez, Roger"]
[Result "0-1"]
[ECO "C50"]
[WhiteElo "2338"]
[BlackElo "2168"]
[Annotator "ChessBase"]
[PlyCount "102"]
[EventDate "2024.01.18"]
[EventType "team-tourn"]
[EventCountry "ESP"]
[SourceTitle "playchess.com"]
[Source "ChessBase"]
[SourceQuality "1"]
[TimeControl "5400+30"]

1. e4 {[%emt 0:00:06]} e5 {[%emt 0:00:15]} 2. Nf3 {[%emt 0:00:13]} Nc6 {[%emt 0:00:06]} 3. Bc4 {[%emt 0:00:31]} Bc5 {[%emt 0:00:05]} 4. Nc3 {[%emt 0:00:40]} Nf6 {[%emt 0:00:36]} 5. d3 {[%emt 0:00:09]} h6 {[%emt 0:04:11]} 6. O-O {[%emt 0:00:47]} d6 {[%emt 0:07:26]} 7. Na4 {[%emt 0:01:02]} Bg4 {[%emt 0:04:32]} 8. c3 {[%emt 0:11:27]} a6 {[%emt 0:03:32]} 9. Nxc5 {[%emt 0:04:57]} dxc5 {[%emt 0:00:52]} 10. a4 {[%emt 0:00:52]} Qd6 {[%emt 0:02:38]} 11. a5 {[%emt 0:02:18]} O-O-O {[%emt 0:03:02]} 12. Qe2 {[%emt 0:03:53]} Nh5 {[%emt 0:07:27]} 13. h3 {[%emt 0:05:34]} Be6 {[%emt 0:00:43]} 14. Bxe6+ {[%emt 0:04:35]} Qxe6 {[%emt 0:00:17]} 15. Be3 {[%emt 0:07:10]} g5 {[%emt 0:04:55]} 16. b4 {[%emt 0:17:50]} cxb4 {[%emt 0:04:38]} 17. cxb4 {[%emt 0:00:07]} Nxb4 {[%emt 0:20:48]} 18. d4 {[%emt 0:11:02]} exd4 {[%emt 0:01:16]} 19. Nxd4 {[%emt 0:02:14]} Nf4 {[%emt 0:01:38]} 20. Qf3 {[%emt 0:04:41]} Qe5 {[%emt 0:04:33]} 21. Bxf4 {[%emt 0:08:35]} Qxd4 {[%emt 0:02:16]} 22. Bh2 {[%emt 0:01:01]} Rd7 {[%emt 0:04:03]} 23. Rad1 {[%emt 0:01:06]} Nd3 {[%emt 0:00:17]} 24. Rd2 {[%emt 0:00:55]} Rhd8 {[%emt 0:01:02]} 25. Rfd1 {[%emt 0:00:12]} Qa4 {[%emt 0:03:54]} 26. Bg3 {[%emt 0:05:53]} Nc5 {[%emt 0:03:40]} 27. Rd5 {[%emt 0:02:29]} Ne6 {[%emt 0:05:15]} 28. Rc1 {[%emt 0:00:20]} c6 {[%emt 0:04:25]} 29. Kh2 {[%emt 0:00:25]} Nd4 {[%emt 0:00:58]} 30. Qf6 {[%emt 0:01:15]} Ne2 {[%emt 0:00:36]} 31. Rxd7 {[%emt 0:01:17]} Rxd7 {[%emt 0:00:18]} 32. Qh8+ {[%emt 0:01:19]} Rd8 {[%emt 0:00:05]} 33. Qe5 {[%emt 0:00:04]} Nxg3 {[%emt 0:00:18]} 34. fxg3 {[%emt 0:00:01]} Qa2 {[%emt 0:00:49]} 35. Rf1 {[%emt 0:00:30]} Qe6 {[%emt 0:01:03]} 36. Qg7 {[%emt 0:00:24]} Rd7 {[%emt 0:01:57]} 37. e5 {[%emt 0:00:59]} Re7 {[%emt 0:01:48]} 38. Rf6 {[%emt 0:00:19]} Qxe5 {[%emt 0:00:16]} 39. Qxh6 {[%emt 0:00:02]} Qxa5 {[%emt 0:00:54]} 40. Qf8+ {[%emt 0:01:02]} Qd8 {[%emt 0:00:01]} 41. Rxf7 {[%emt 0:00:16]} Qxf8 {[%emt 0:00:58]} 42. Rxf8+ {[%emt 0:00:02]} Kd7 {[%emt 0:00:37]} 43. Rf5 {[%emt 0:00:02]} b5 {[%emt 0:00:29]} 44. Rxg5 {[%emt 0:00:09]} b4 {[%emt 0:00:15]} 45. Ra5 {[%emt 0:00:24]} Kd6 {[%emt 0:00:35]} 46. Rxa6 {[%emt 0:00:13]} Rb7 {[%emt 0:00:03]} 47. Kg1 {[%emt 0:00:26]} b3 {[%emt 0:00:04]} 48. Ra1 {[%emt 0:00:02]} c5 {[%emt 0:00:51]} 49. Kf2 {[%emt 0:00:02]} c4 {[%emt 0:00:27]} 50. Ke3 {[%emt 0:00:06]} Kc5 {[%emt 0:00:12]} 51. g4 {[%emt 0:00:33]} Rd7 {[%emt 0:04:04]} 0-1

[Event "Lliga Catalana 2024"]
[Site "Catalonia"]
[Date "2024.02.03"]
[Round "3.8"]
[White "Alonso Seisdedos, Cayetano"]
[Black "Vehi Bach, Victor Manuel"]
[Result "0-1"]
[ECO "B42"]
[WhiteElo "2243"]
[BlackElo "2218"]
[Annotator "RC"]
[PlyCount "176"]
[EventDate "2024.01.18"]
[EventType "team-tourn"]
[EventCountry "ESP"]
[SourceTitle "playchess.com"]
[Source "ChessBase"]
[SourceQuality "1"]
[TimeControl "5400+30"]

1. e4 {[%emt 0:00:08]} c5 {[%emt 0:00:12]} 2. Nf3 {[%emt 0:00:05]} e6 {[%emt 0:00:11]} 3. d4 {[%emt 0:00:17]} cxd4 {[%emt 0:00:09]} 4. Nxd4 {[%emt 0:00:06]} a6 {[%emt 0:00:27]} 5. Bd3 {[%emt 0:06:00]} Nf6 {[%emt 0:01:21]} 6. O-O {[%emt 0:00:49]} e5 {[%emt 0:05:02]} 7. Nb3 {[%emt 0:05:52]} d6 {[%emt 0:00:21]} 8. Nc3 {[%emt 0:03:24]} Be7 {[%emt 0:01:53]} 9. h3 {[%emt 0:05:28]} O-O {[%emt 0:04:07]} 10. Be3 {[%emt 0:08:21]} Nc6 {[%emt 0:18:35]} 11. a3 {[%emt 0:22:58]} h6 {[%emt 0:06:04]} 12. Qd2 {[%emt 0:04:37]} Be6 {[%emt 0:03:22]} 13. Rad1 {[%emt 0:38:55]} b5 {[%emt 0:12:18]} 14. f3 {[%emt 0:00:00]} Rb8 {[%emt 0:10:57]} 15. Nd5 {[%emt 0:01:00]} Nxd5 {[%emt 0:12:18]} 16. exd5 {[%emt 0:00:00]} Bxd5 {[%emt 0:00:04]} 17. Bxh6 {[%emt 0:00:00]} Bc4 {[%emt 0:09:22]} 18. Be3 {[%emt 0:00:00]} d5 {[%emt 0:00:09]} 19. Nc1 {[%emt 0:00:00]} d4 {[%emt 0:01:03]} 20. Bf2 {[%emt 0:00:00]} f5 {[%emt 0:05:14]} 21. Rfe1 {[%emt 0:00:00]} Bd6 {[%emt 0:01:13]} 22. c3 {[%emt 0:00:00]} Bd5 {[%emt 0:02:02]} 23. Bc2 {[%emt 0:00:00]} Bc5 {[%emt 0:01:04]} 24. Nb3 {[%emt 0:00:00]} Bxb3 {[%emt 0:00:42]} 25. Bxb3+ {[%emt 0:00:00]} Kh7 {[%emt 0:00:05]} 26. Bc2 {[%emt 0:00:00]} dxc3 {[%emt 0:01:15]} 27. Qxc3 {[%emt 0:01:42]} Bxf2+ {[%emt 0:00:05]} 28. Kxf2 {[%emt 0:00:06]} Qb6+ {[%emt 0:00:10]} 29. Qe3 {[%emt 0:01:41]} Nd4 {[%emt 0:04:10]} 30. Bb1 {[%emt 0:00:13]} Kh8 {[%emt 0:01:35]} 31. f4 {[%emt 0:01:26]} Rbd8 {[%emt 0:00:00]} 32. Kf1 {[%emt 0:00:47]} e4 {[%emt 0:00:00]} 33. Rd2 {[%emt 0:01:09]} Qf6 {[%emt 0:00:00]} 34. Red1 {[%emt 0:00:11]} Ne6 {[%emt 0:00:00]} 35. Rxd8 {[%emt 0:00:31]} Rxd8 {[%emt 0:00:01]} 36. Rxd8+ {[%emt 0:00:20]} Qxd8 {[%emt 0:00:10]} 37. Kf2 {[%emt 0:00:41]} Qc7 {[%emt 0:00:39]} 38. g3 {[%emt 0:00:14]} Qd6 {[%emt 0:00:15]} 39. Qe2 {[%emt 0:00:18]} Qd4+ {[%emt 0:00:26]} 40. Kg2 {[%emt 0:00:05]} g6 {[%emt 0:00:31]} 41. h4 {[%emt 0:00:25]} Kg7 {[%emt 0:00:12]} 42. h5 {[%emt 0:00:16]} gxh5 {[%emt 0:00:51]} 43. Ba2 {[%emt 0:00:52]} Kf6 {[%emt 0:00:01]} 44. Bxe6 {[%emt 0:00:21]} Kxe6 {[%emt 0:00:01]} 45. Qxh5 {[%emt 0:00:09]} Qxb2+ {[%emt 0:00:11]} 46. Kh3 {[%emt 0:00:05]} Qf6 {[%emt 0:01:00]} 47. Qe8+ {[%emt 0:00:23]} Kd5 {[%emt 0:00:08]} 48. a4 {[%emt 0:01:51]} Qh6+ {[%emt 0:00:56]} 49. Kg2 {[%emt 0:00:03]} Qe6 {[%emt 0:00:11]} 50. Qa8+ {[%emt 0:00:30]} Kc5 {[%emt 0:01:04]} 51. axb5 {[%emt 0:00:16]} axb5 {[%emt 0:00:13]} 52. Qa7+ {[%emt 0:00:19]} Kb4 {[%emt 0:00:28]} 53. Qd4+ {[%emt 0:01:00]} Ka3 {[%emt 0:00:41]} 54. Qc3+ {[%emt 0:01:17]} Ka4 {[%emt 0:00:22]} 55. Qa1+ {[%emt 0:00:24]} Kb4 {[%emt 0:00:14]} 56. Qb2+ {[%emt 0:00:46]} Qb3 {[%emt 0:00:29]} 57. Qd4+ {[%emt 0:00:19]} Qc4 {[%emt 0:00:13]} 58. Qb2+ {[%emt 0:01:03]} Kc5 {[%emt 0:00:09]} 59. Qe5+ {[%emt 0:00:21]} Qd5 {[%emt 0:00:02]} 60. Qc3+ {[%emt 0:00:14]} Kb6 {[%emt 0:00:20]} 61. Qf6+ {[%emt 0:00:12]} Ka5 {[%emt 0:00:46]} 62. Qa1+ {[%emt 0:00:08]} Kb4 {[%emt 0:00:36]} 63. Qb2+ {[%emt 0:00:11]} Kc5 {[%emt 0:01:02]} 64. Qc3+ {[%emt 0:00:10]} Kd6 {[%emt 0:00:40]} 65. Qf6+ {[%emt 0:00:11]} Kd7 {[%emt 0:00:56]} 66. Qg7+ {[%emt 0:00:10]} Kc6 {[%emt 0:00:14]} 67. Qf6+ {[%emt 0:00:11]} Kb7 {[%emt 0:00:22]} 68. Qg7+ {[%emt 0:00:48]} Kb6 {[%emt 0:00:50]} 69. Qf6+ {[%emt 0:00:03]} Qc6 {[%emt 0:01:44]} 70. Qxf5 {[%emt 0:03:32]} e3+ {[%emt 0:00:00]} 71. Kg1 {[%emt 0:01:00]} Qc1+ {[%emt 0:00:32]} 72. Kg2 {[%emt 0:00:47]} Qd2+ {[%emt 0:00:38]} 73. Kh3 {[%emt 0:00:20]} e2 {[%emt 0:00:12]} 74. Qf6+ {[%emt 0:00:11]} Kc5 {[%emt 0:00:18]} 75. Qe5+ {[%emt 0:00:26]} Kc4 {[%emt 0:00:01]} 76. Qe4+ {[%emt 0:00:53]} Kb3 {[%emt 0:00:42]} 77. Qb1+ {[%emt 0:00:30]} Kc3 {[%emt 0:00:12]} 78. Qa1+ {[%emt 0:00:18]} Kd3 {[%emt 0:00:25]} 79. Qb1+ {[%emt 0:00:44]} Ke3 {[%emt 0:01:13]} 80. Qg1+ {[%emt 0:00:04]} Ke4 {[%emt 0:00:34]} 81. Qb1+ {[%emt 0:00:13]} Qd3 {[%emt 0:00:42]} 82. Qb4+ {[%emt 0:00:39]} Ke3 {[%emt 0:00:22]} 83. Qe1 {[%emt 0:01:05]} Qd2 {[%emt 0:00:52]} 84. Qg1+ {[%emt 0:00:30]} Kd3 {[%emt 0:00:01]} 85. Qc5 {[%emt 0:00:11]} e1=Q {[%emt 0:00:21]} 86. Qxb5+ {[%emt 0:00:06]} Ke3 {[%emt 0:00:17]} 87. Qc5+ {[%emt 0:00:26]} Qd4 {[%emt 0:00:18]} 88. Qe7+ {[%emt 0:00:10]} Kf2 {[%emt 0:00:18]} 0-1

[Event "Lliga Catalana 2024"]
[Site "Catalonia"]
[Date "2024.02.03"]
[Round "3.8"]
[White "Ramirez Carrizo, Victor Jose"]
[Black "Iborra Polo, Eric"]
[Result "1-0"]
[ECO "B43"]
[WhiteElo "2182"]
[BlackElo "1955"]
[Annotator "ChessBase"]
[PlyCount "55"]
[EventDate "2024.01.18"]
[EventType "team-tourn"]
[EventCountry "ESP"]
[SourceTitle "playchess.com"]
[Source "ChessBase"]
[SourceQuality "1"]
[TimeControl "5400+30"]

1. e4 {[%emt 1:31:00]} c5 {[%emt 1:31:00]} 2. Nc3 {[%emt 0:00:30]} e6 {[%emt 0:00:30]} 3. Nf3 {[%emt 0:00:30]} a6 {[%emt 0:00:30]} 4. g3 {[%emt 0:00:30]} b5 {[%emt 0:00:30]} 5. Bg2 {[%emt 0:00:30]} Bb7 {[%emt 0:00:30]} 6. d4 {[%emt 0:00:30]} cxd4 {[%emt 0:00:30]} 7. Nxd4 {[%emt 0:00:30]} Nf6 {[%emt 0:00:30]} 8. O-O {[%emt 0:00:30]} d6 {[%emt 0:00:30]} 9. Re1 {[%emt 0:00:30]} Qc7 {[%emt 0:00:30]} 10. a4 {[%emt 0:00:30]} b4 {[%emt 0:00:30]} 11. Nd5 {[%emt 0:00:30]} exd5 {[%emt 0:00:30]} 12. exd5+ {[%emt 0:00:30]} Kd8 {[%emt 0:00:30]} 13. Bg5 {[%emt 0:00:30]} Nbd7 {[%emt 0:00:30]} 14. c3 {[%emt 0:00:30]} h6 {[%emt 0:00:30]} 15. cxb4 {[%emt 0:00:30]} hxg5 {[%emt 0:00:30]} 16. Rc1 {[%emt 0:00:30]} Qb6 {[%emt 0:00:30]} 17. Nc6+ {[%emt 0:00:30]} Bxc6 {[%emt 0:00:30]} 18. dxc6 {[%emt 0:00:30]} Rc8 {[%emt 0:00:30]} 19. cxd7 {[%emt 0:00:30]} Rxc1 {[%emt 0:00:30]} 20. Qxc1 {[%emt 0:00:30]} Kxd7 {[%emt 0:00:30]} 21. a5 {[%emt 0:00:30]} Qb5 {[%emt 0:00:30]} 22. Qe3 {[%emt 0:00:30]} d5 {[%emt 0:00:30]} 23. Qa7+ {[%emt 0:00:30]} Kd6 {[%emt 0:00:30]} 24. Bf1 {[%emt 0:00:30]} Qxb4 {[%emt 0:00:30]} 25. Qxa6+ {[%emt 0:00:30]} Kc7 {[%emt 0:00:30]} 26. Rc1+ {[%emt 0:00:30]} Bc5 {[%emt 0:00:30]} 27. Bb5 {[%emt 0:00:30]} Rc8 {[%emt 0:00:30]} 28. Qb6# {[%emt 0:00:30]} 1-0

[Event "Lliga Catalana 2024"]
[Site "Catalonia"]
[Date "2024.02.03"]
[Round "3.9"]
[White "Lever, Erwan"]
[Black "Prada Villagrasa, Pau Manel"]
[Result "1-0"]
[ECO "E01"]
[WhiteElo "2199"]
[BlackElo "2131"]
[Annotator "ChessBase"]
[PlyCount "79"]
[EventDate "2024.01.18"]
[EventType "team-tourn"]
[EventCountry "ESP"]
[SourceTitle "playchess.com"]
[Source "ChessBase"]
[SourceQuality "1"]
[TimeControl "5400+30"]

1. d4 {[%emt 0:00:06]} d5 {[%emt 0:00:07]} 2. Nf3 {[%emt 0:00:08]} Nf6 {[%emt 0:00:15]} 3. g3 {[%emt 0:00:06]} e6 {[%emt 0:00:21]} 4. c4 {[%emt 0:00:28]} Bb4+ {[%emt 0:01:11]} 5. Nbd2 {[%emt 0:01:03]} O-O {[%emt 0:02:38]} 6. Bg2 {[%emt 0:01:18]} c6 {[%emt 0:01:26]} 7. O-O {[%emt 0:00:20]} Nbd7 {[%emt 0:00:38]} 8. Qc2 {[%emt 0:01:13]} b6 {[%emt 0:14:09]} 9. e4 {[%emt 0:06:33]} Bxd2 {[%emt 0:06:39]} 10. Nxd2 {[%emt 0:00:32]} dxc4 {[%emt 0:03:14]} 11. Nxc4 {[%emt 0:00:31]} Ba6 {[%emt 0:01:12]} 12. Rd1 {[%emt 0:00:29]} Bxc4 {[%emt 0:15:18]} 13. Qxc4 {[%emt 0:00:22]} Rc8 {[%emt 0:00:04]} 14. Qa6 {[%emt 0:02:08]} Nc5 {[%emt 0:05:25]} 15. Qe2 {[%emt 0:00:58]} Ncd7 {[%emt 0:04:33]} 16. b3 {[%emt 0:04:35]} Qe7 {[%emt 0:06:03]} 17. a4 {[%emt 0:00:48]} e5 {[%emt 0:01:24]} 18. dxe5 {[%emt 0:15:46]} Nxe5 {[%emt 0:03:47]} 19. Bb2 {[%emt 0:00:53]} Rfd8 {[%emt 0:00:55]} 20. Bh3 {[%emt 0:02:38]} Rb8 {[%emt 0:06:18]} 21. Rac1 {[%emt 0:00:38]} c5 {[%emt 0:00:40]} 22. Bg2 {[%emt 0:02:33]} Qe6 {[%emt 0:03:16]} 23. f4 {[%emt 0:02:08]} Nc6 {[%emt 0:03:01]} 24. f5 {[%emt 0:00:21]} Qxb3 {[%emt 0:10:21]} 25. e5 {[%emt 0:02:47]} Nd5 {[%emt 0:00:08]} 26. Rd3 {[%emt 0:02:50]} Qxa4 {[%emt 0:04:28]} 27. Rxd5 {[%emt 0:03:40]} Nd4 {[%emt 0:01:47]} 28. Qg4 {[%emt 0:02:55]} Qb3 {[%emt 0:01:05]} 29. Bxd4 {[%emt 0:09:05]} Rxd5 {[%emt 0:00:13]} 30. Bxd5 {[%emt 0:00:36]} Qxd5 {[%emt 0:00:05]} 31. Ba1 {[%emt 0:00:21]} Qd2 {[%emt 0:02:27]} 32. Rd1 {[%emt 0:01:24]} Qe3+ {[%emt 0:00:04]} 33. Kg2 {[%emt 0:00:44]} c4 {[%emt 0:01:01]} 34. Bd4 {[%emt 0:04:05]} Qh6 {[%emt 0:00:20]} 35. e6 {[%emt 0:01:50]} fxe6 {[%emt 0:00:46]} 36. f6 {[%emt 0:00:54]} Re8 {[%emt 0:00:31]} 37. Rf1 {[%emt 0:00:16]} Kf7 {[%emt 0:01:53]} 38. Qe4 {[%emt 0:03:32]} Qd2+ {[%emt 0:00:32]} 39. Rf2 {[%emt 0:00:34]} Qd3 {[%emt 0:00:46]} 40. Qb7+ {[%emt 0:03:23]} 1-0

[Event "Lliga Catalana 2024"]
[Site "Catalonia"]
[Date "2024.02.03"]
[Round "3.9"]
[White "Molina Gil, Noah"]
[Black "Herman Gamazo, Isaac"]
[Result "0-1"]
[ECO "C88"]
[WhiteElo "1896"]
[BlackElo "2086"]
[Annotator "ChessBase"]
[PlyCount "104"]
[EventDate "2024.01.18"]
[EventType "team-tourn"]
[EventCountry "ESP"]
[SourceTitle "playchess.com"]
[Source "ChessBase"]
[SourceQuality "1"]
[TimeControl "5400+30"]

1. e4 {[%emt 0:00:03]} e5 {[%emt 0:00:35]} 2. Nf3 {[%emt 0:00:49]} Nc6 {[%emt 0:00:08]} 3. Bb5 {[%emt 0:01:07]} a6 {[%emt 0:00:07]} 4. Ba4 {[%emt 0:00:05]} Nf6 {[%emt 0:00:05]} 5. d3 {[%emt 0:00:22]} b5 {[%emt 0:01:23]} 6. Bb3 {[%emt 0:00:13]} Be7 {[%emt 0:01:35]} 7. O-O {[%emt 0:00:36]} d6 {[%emt 0:00:19]} 8. c3 {[%emt 0:00:47]} O-O {[%emt 0:00:26]} 9. Re1 {[%emt 0:01:00]} Nb8 {[%emt 0:01:00]} 10. a4 {[%emt 0:04:26]} Bb7 {[%emt 0:02:16]} 11. Nbd2 {[%emt 0:02:28]} Nbd7 {[%emt 0:00:22]} 12. Nf1 {[%emt 0:01:40]} c5 {[%emt 0:02:31]} 13. Ng3 {[%emt 0:04:08]} Rc8 {[%emt 0:03:30]} 14. Bc2 {[%emt 0:06:32]} Re8 {[%emt 0:02:52]} 15. d4 {[%emt 0:03:45]} Bf8 {[%emt 0:00:41]} 16. dxe5 {[%emt 0:02:55]} dxe5 {[%emt 0:01:29]} 17. Nf5 {[%emt 0:02:23]} Qc7 {[%emt 0:00:25]} 18. Qe2 {[%emt 0:05:06]} c4 {[%emt 0:00:44]} 19. Bg5 {[%emt 0:06:02]} h6 {[%emt 0:04:45]} 20. Bh4 {[%emt 0:04:20]} g6 {[%emt 0:01:40]} 21. Bxf6 {[%emt 0:02:45]} Nxf6 {[%emt 0:00:13]} 22. Ng3 {[%emt 0:01:19]} Bc5 {[%emt 0:02:18]} 23. b4 {[%emt 0:03:29]} cxb3 {[%emt 0:10:02]} 24. Bxb3 {[%emt 0:00:09]} Bc6 {[%emt 0:00:50]} 25. axb5 {[%emt 0:02:23]} axb5 {[%emt 0:00:41]} 26. h3 {[%emt 0:02:06]} Ra8 {[%emt 0:02:30]} 27. Rad1 {[%emt 0:04:11]} Red8 {[%emt 0:09:55]} 28. Rd2 {[%emt 0:08:56]} Rd7 {[%emt 0:07:30]} 29. Red1 {[%emt 0:02:02]} Rad8 {[%emt 0:02:36]} 30. Rxd7 {[%emt 0:01:50]} Rxd7 {[%emt 0:00:35]} 31. Rxd7 {[%emt 0:00:38]} Nxd7 {[%emt 0:00:08]} 32. Ne1 {[%emt 0:02:39]} Bf8 {[%emt 0:02:37]} 33. Nd3 {[%emt 0:03:20]} Nc5 {[%emt 0:02:33]} 34. Nxc5 {[%emt 0:01:02]} Bxc5 {[%emt 0:00:13]} 35. Qg4 {[%emt 0:00:59]} Qd6 {[%emt 0:01:27]} 36. Nf5 {[%emt 0:01:28]} Qf6 {[%emt 0:01:19]} 37. Ne3 {[%emt 0:04:33]} Kg7 {[%emt 0:04:33]} 38. Bd5 {[%emt 0:01:34]} Bxd5 {[%emt 0:09:03]} 39. exd5 {[%emt 0:00:14]} e4 {[%emt 0:00:06]} 40. Qxe4 {[%emt 0:02:23]} Qxc3 {[%emt 0:00:10]} 41. Nd1 {[%emt 0:03:08]} Qd2 {[%emt 0:02:38]} 42. Qe5+ {[%emt 0:01:36]} Kh7 {[%emt 0:01:06]} 43. Ne3 {[%emt 0:01:26]} Qe1+ {[%emt 0:07:21]} 44. Kh2 {[%emt 0:00:16]} Qxf2 {[%emt 0:00:23]} 45. Ng4 {[%emt 0:01:32]} Qf5 {[%emt 0:01:49]} 46. Qc7 {[%emt 0:02:54]} Bd4 {[%emt 0:03:24]} 47. d6 {[%emt 0:03:07]} Qf4+ {[%emt 0:00:21]} 48. Kh1 {[%emt 0:00:43]} Qf1+ {[%emt 0:00:48]} 49. Kh2 {[%emt 0:00:09]} Bg1+ {[%emt 0:00:33]} 50. Kg3 {[%emt 0:00:05]} Qd3+ {[%emt 0:00:15]} 51. Kf4 {[%emt 0:00:52]} g5+ {[%emt 0:00:18]} 52. Ke5 {[%emt 0:00:31]} Qd4+ {[%emt 0:00:05]} 0-1

[Event "Lliga Catalana 2024"]
[Site "Catalonia"]
[Date "2024.02.03"]
[Round "3.10"]
[White "Bravo Barranco, Narciso"]
[Black "Parra Ordorica, Arnau"]
[Result "1-0"]
[ECO "C77"]
[WhiteElo "2174"]
[BlackElo "1865"]
[Annotator "ChessBase"]
[PlyCount "103"]
[EventDate "2024.01.18"]
[EventType "team-tourn"]
[EventCountry "ESP"]
[SourceTitle "playchess.com"]
[Source "ChessBase"]
[SourceQuality "1"]
[TimeControl "5400+30"]

1. e4 {[%emt 0:00:08]} e5 {[%emt 0:00:03]} 2. Nf3 {[%emt 0:00:18]} Nc6 {[%emt 0:00:06]} 3. Bb5 {[%emt 0:00:27]} a6 {[%emt 0:00:12]} 4. Ba4 {[%emt 0:00:26]} Nf6 {[%emt 0:00:12]} 5. d3 {[%emt 0:00:42]} b5 {[%emt 0:00:06]} 6. Bb3 {[%emt 0:00:12]} Bc5 {[%emt 0:00:05]} 7. c3 {[%emt 0:00:28]} d6 {[%emt 0:00:14]} 8. Nbd2 {[%emt 0:00:43]} O-O {[%emt 0:02:19]} 9. Nf1 {[%emt 0:00:24]} d5 {[%emt 0:01:27]} 10. Qe2 {[%emt 0:01:15]} h6 {[%emt 0:02:28]} 11. Ng3 {[%emt 0:00:41]} Re8 {[%emt 0:06:52]} 12. O-O {[%emt 1:30:46]} d4 {[%emt 0:16:39]} 13. Qc2 {[%emt 0:00:00]} Na5 {[%emt 0:05:25]} 14. cxd4 {[%emt 0:00:00]} Nxb3 {[%emt 0:00:17]} 15. axb3 {[%emt 0:00:00]} Bxd4 {[%emt 0:00:30]} 16. Nxd4 {[%emt 0:00:00]} Qxd4 {[%emt 0:01:18]} 17. Be3 {[%emt 0:00:00]} Qd6 {[%emt 0:00:45]} 18. Rfd1 {[%emt 0:03:00]} Be6 {[%emt 0:29:50]} 19. d4 {[%emt 0:00:00]} Ng4 {[%emt 0:00:52]} 20. d5 {[%emt 0:00:00]} Nxe3 {[%emt 0:00:23]} 21. fxe3 {[%emt 0:00:00]} Bd7 {[%emt 0:00:16]} 22. Rac1 {[%emt 0:00:00]} Rac8 {[%emt 0:00:55]} 23. Qc5 {[%emt 0:02:30]} Qxc5 {[%emt 0:12:14]} 24. Rxc5 {[%emt 0:00:00]} c6 {[%emt 0:00:01]} 25. b4 {[%emt 0:00:00]} g6 {[%emt 0:04:02]} 26. Ra1 {[%emt 0:00:00]} cxd5 {[%emt 0:00:53]} 27. exd5 {[%emt 0:00:00]} Ra8 {[%emt 0:01:10]} 28. Ne4 {[%emt 0:00:00]} Red8 {[%emt 0:01:05]} 29. Rc7 {[%emt 0:00:00]} Bf5 {[%emt 0:00:32]} 30. Nc5 {[%emt 0:00:00]} e4 {[%emt 0:01:22]} 31. Rd1 {[%emt 0:00:00]} Rac8 {[%emt 0:13:27]} 32. Nxa6 {[%emt 0:00:00]} Rd6 {[%emt 0:00:00]} 33. Rxc8+ {[%emt 0:00:00]} Bxc8 {[%emt 0:00:00]} 34. Nc5 {[%emt 0:00:00]} f5 {[%emt 0:01:30]} 35. Ra1 {[%emt 0:00:00]} Rxd5 {[%emt 0:00:00]} 36. Ra8 {[%emt 0:00:00]} Rd8 {[%emt 0:00:00]} 37. Ne6 {[%emt 0:00:00]} Rd1+ {[%emt 0:00:00]} 38. Kf2 {[%emt 0:00:00]} Kf7 {[%emt 0:02:00]} 39. Ke2 {[%emt 0:08:00]} Rd6 {[%emt 0:00:00]} 40. Nd4 {[%emt 0:00:00]} Be6 {[%emt 0:00:00]} 41. b3 {[%emt 0:00:00]} Rd7 {[%emt 0:00:00]} 42. Ra6 {[%emt 0:00:00]} Re7 {[%emt 0:00:00]} 43. Rb6 {[%emt 0:00:00]} Bd7 {[%emt 0:02:30]} 44. h4 {[%emt 0:00:00]} h5 {[%emt 0:00:00]} 45. Kf2 {[%emt 0:00:00]} Be8 {[%emt 0:01:00]} 46. Kg3 {[%emt 0:00:00]} Ra7 {[%emt 0:00:00]} 47. Kf4 {[%emt 0:00:00]} Ra2 {[%emt 0:00:00]} 48. Ke5 {[%emt 0:00:00]} Kg7 {[%emt 0:00:35]} 49. Ne6+ {[%emt 0:00:00]} Kh6 {[%emt 0:00:20]} 50. Rb8 {[%emt 0:00:00]} Rxg2 {[%emt 0:00:32]} 51. Rxe8 {[%emt 0:00:00]} g5 {[%emt 0:00:18]} 52. hxg5+ {[%emt 0:00:00]} 1-0

[Event "Lliga Catalana 2024"]
[Site "Catalonia"]
[Date "2024.02.03"]
[Round "3.10"]
[White "Jareno Badenas, Aleix"]
[Black "Fernandez Lozano, Francesc"]
[Result "1-0"]
[ECO "A04"]
[WhiteElo "2122"]
[BlackElo "2071"]
[Annotator "ChessBase"]
[PlyCount "63"]
[EventDate "2024.01.18"]
[EventType "team-tourn"]
[EventCountry "ESP"]
[SourceTitle "playchess.com"]
[Source "ChessBase"]
[SourceQuality "1"]
[TimeControl "5400+30"]

1. Nf3 {[%emt 0:00:04]} g6 {[%emt 1:31:00]} 2. g3 {[%emt 0:00:06]} Bg7 {[%emt 0:00:00]} 3. Bg2 {[%emt 0:00:04]} c5 {[%emt 0:00:00]} 4. O-O {[%emt 0:00:07]} Nc6 {[%emt 0:00:00]} 5. d3 {[%emt 0:00:22]} d6 {[%emt 0:00:00]} 6. e4 {[%emt 0:00:37]} e6 {[%emt 0:00:00]} 7. c3 {[%emt 0:01:48]} Nge7 {[%emt 0:00:00]} 8. Be3 {[%emt 0:07:24]} O-O {[%emt 0:00:00]} 9. Qd2 {[%emt 0:06:10]} b6 {[%emt 0:04:00]} 10. Bh6 {[%emt 0:04:25]} Bb7 {[%emt 0:00:00]} 11. h4 {[%emt 0:06:47]} Ne5 {[%emt 0:01:00]} 12. Rd1 {[%emt 0:24:46]} Nxf3+ {[%emt 0:00:00]} 13. Bxf3 {[%emt 0:00:03]} f5 {[%emt 0:00:00]} 14. Bxg7 {[%emt 0:02:45]} Kxg7 {[%emt 0:00:00]} 15. Bg2 {[%emt 0:00:40]} b5 {[%emt 0:00:00]} 16. Na3 {[%emt 0:02:26]} Qb6 {[%emt 0:00:00]} 17. Re1 {[%emt 0:14:18]} e5 {[%emt 0:00:00]} 18. Nc2 {[%emt 0:03:05]} f4 {[%emt 0:00:00]} 19. d4 {[%emt 0:01:35]} Rad8 {[%emt 0:00:00]} 20. Rad1 {[%emt 0:02:34]} Bc8 {[%emt 0:00:00]} 21. gxf4 {[%emt 0:02:09]} exf4 {[%emt 0:05:00]} 22. f3 {[%emt 0:04:42]} Rde8 {[%emt 0:00:00]} 23. dxc5 {[%emt 0:01:15]} Qxc5+ {[%emt 0:00:00]} 24. Qd4+ {[%emt 0:00:05]} Rf6 {[%emt 0:00:00]} 25. e5 {[%emt 0:03:08]} Qxd4+ {[%emt 0:00:00]} 26. Nxd4 {[%emt 0:00:46]} dxe5 {[%emt 0:00:00]} 27. Rxe5 {[%emt 0:00:02]} a6 {[%emt 0:00:00]} 28. Rde1 {[%emt 0:02:27]} Kf8 {[%emt 0:00:00]} 29. Kh2 {[%emt 0:00:14]} Bd7 {[%emt 0:00:00]} 30. Bh3 {[%emt 0:04:27]} Nc6 {[%emt 0:00:00]} 31. Rxe8+ {[%emt 0:00:10]} Bxe8 {[%emt 0:00:00]} 32. Ne6+ {[%emt 0:00:05]} 1-0